[Event "Early-Titled-Tuesday-Blitz-October-10-2023"]
[Site "Chess.com"]
[Date "2023.10.10"]
[Round "1"]
[White "farzadbfd"]
[Black "fugadelafuga"]
[Result "1-0"]
[WhiteElo "2701"]
[BlackElo "2395"]
[TimeControl "180+1"]
[EndTime "8:08:34 PDT"]
[Termination "farzadbfd won by resignation"]

1. d4 {[%clk 0:02:59.9]} 1... Nf6 {[%clk 0:02:59.7]} 2. Nf3 {[%clk 0:03:00]}
2... d5 {[%clk 0:02:59]} 3. c4 {[%clk 0:02:59.8]} 3... e6 {[%clk 0:02:58.4]} 4.
Nc3 {[%clk 0:02:59.8]} 4... c5 {[%clk 0:02:57.7]} 5. cxd5 {[%clk 0:02:59.2]}
5... Nxd5 {[%clk 0:02:58.6]} 6. e4 {[%clk 0:02:47.4]} 6... Nxc3 {[%clk
0:02:57.6]} 7. bxc3 {[%clk 0:02:48.3]} 7... cxd4 {[%clk 0:02:58.2]} 8. cxd4
{[%clk 0:02:49]} 8... Bb4+ {[%clk 0:02:58.6]} 9. Bd2 {[%clk 0:02:48.6]} 9...
Bxd2+ {[%clk 0:02:58]} 10. Qxd2 {[%clk 0:02:49.5]} 10... O-O {[%clk 0:02:58.4]}
11. Bd3 {[%clk 0:02:45]} 11... b6 {[%clk 0:02:57.9]} 12. O-O {[%clk 0:02:44.8]}
12... Bb7 {[%clk 0:02:58.3]} 13. a4 {[%clk 0:02:41.8]} 13... Nc6 {[%clk
0:02:57.6]} 14. Qe3 {[%clk 0:02:37]} 14... h6 {[%clk 0:02:57.5]} 15. Rfd1 {[%clk
0:02:35.5]} 15... Qe7 {[%clk 0:02:54.1]} 16. Bb5 {[%clk 0:02:25.8]} 16... Rfd8
{[%clk 0:02:46.6]} 17. h3 {[%clk 0:02:18.8]} 17... Rac8 {[%clk 0:02:44.6]} 18.
Bxc6 {[%clk 0:02:14.3]} 18... Bxc6 {[%clk 0:02:42.2]} 19. a5 {[%clk 0:02:14.5]}
19... b5 {[%clk 0:02:40.6]} 20. Ne5 {[%clk 0:02:10.6]} 20... Bb7 {[%clk
0:02:38.5]} 21. Nd3 {[%clk 0:01:51.8]} 21... Rc4 {[%clk 0:02:29.6]} 22. Nc5
{[%clk 0:01:48.5]} 22... Bc6 {[%clk 0:02:29.9]} 23. Rac1 {[%clk 0:01:44]} 23...
Qc7 {[%clk 0:02:14.9]} 24. Rxc4 {[%clk 0:01:41.1]} 24... bxc4 {[%clk 0:02:15.8]}
25. Qc3 {[%clk 0:01:41.2]} 25... Bb5 {[%clk 0:02:14.1]} 26. Qb4 {[%clk
0:01:09.1]} 26... a6 {[%clk 0:02:07.7]} 27. Qc3 {[%clk 0:00:59.1]} 27... Qc6
{[%clk 0:02:01.4]} 28. e5 {[%clk 0:00:36.9]} 28... Qd5 {[%clk 0:01:48.8]} 29. f3
{[%clk 0:00:37.1]} 29... Rb8 {[%clk 0:01:32.1]} 30. Ne4 {[%clk 0:00:34.9]} 30...
Bc6 {[%clk 0:01:31.9]} 31. Nd6 {[%clk 0:00:33.7]} 31... Rb3 {[%clk 0:01:24.5]}
32. Qxc4 {[%clk 0:00:31.9]} 32... Qxc4 {[%clk 0:01:25.4]} 33. Nxc4 {[%clk
0:00:32.7]} 33... Bd5 {[%clk 0:01:25.9]} 34. Nd6 {[%clk 0:00:24.2]} 34... Rb4
{[%clk 0:01:09.9]} 35. Rc1 {[%clk 0:00:20.9]} 35... Rxd4 {[%clk 0:01:03.6]} 36.
Rc8+ {[%clk 0:00:20.9]} 36... Kh7 {[%clk 0:01:04]} 37. Nxf7 {[%clk 0:00:21.3]}
37... Ra4 {[%clk 0:01:03.3]} 38. h4 {[%clk 0:00:20.3]} 38... Kg6 {[%clk
0:01:02.5]} 39. Nd6 {[%clk 0:00:11.8]} 39... Rxa5 {[%clk 0:01:00.7]} 40. Kh2
{[%clk 0:00:11.9]} 40... Ra4 {[%clk 0:01:00.5]} 41. Kh3 {[%clk 0:00:11.7]} 41...
h5 {[%clk 0:01:00.5]} 42. Rc7 {[%clk 0:00:11.7]} 42... Rf4 {[%clk 0:00:55.2]}
43. Ra7 {[%clk 0:00:11.7]} 43... Ra4 {[%clk 0:00:45.9]} 44. Ne8 {[%clk
0:00:11.6]} 44... Kf5 {[%clk 0:00:46.1]} 45. Nxg7+ {[%clk 0:00:12.3]} 45... Kxe5
{[%clk 0:00:46.3]} 46. Nxh5 {[%clk 0:00:13.1]} 46... Bc4 {[%clk 0:00:45]} 47.
Ng3 {[%clk 0:00:12.1]} 47... Ra2 {[%clk 0:00:44.7]} 48. h5 {[%clk 0:00:12]}
48... Bd3 {[%clk 0:00:42.8]} 49. h6 {[%clk 0:00:11.9]} 49... a5 {[%clk
0:00:43.2]} 50. h7 {[%clk 0:00:12.2]} 50... Bxh7 {[%clk 0:00:43.6]} 51. Rxh7
{[%clk 0:00:13]} 51... a4 {[%clk 0:00:44.3]} 52. Ra7 {[%clk 0:00:13.8]} 52... a3
{[%clk 0:00:44.7]} 53. Ne4 {[%clk 0:00:14.2]} 53... Kf4 {[%clk 0:00:44.7]} 54.
Rf7+ {[%clk 0:00:14.1]} 54... Ke5 {[%clk 0:00:40.9]} 55. Ra7 {[%clk 0:00:14.4]}
55... Ra1 {[%clk 0:00:40.4]} 56. Kg4 {[%clk 0:00:13.9]} 56... Kd4 {[%clk
0:00:40.5]} 57. g3 {[%clk 0:00:14.5]} 57... e5 {[%clk 0:00:40.6]} 58. Ra5 {[%clk
0:00:14.5]} 58... a2 {[%clk 0:00:38.5]} 59. Nd2 {[%clk 0:00:14.5]} 59... Kc3
{[%clk 0:00:38.1]} 60. Ne4+ {[%clk 0:00:13]} 60... Kb2 {[%clk 0:00:37.4]} 61.
Rb5+ {[%clk 0:00:12.5]} 61... Kc2 {[%clk 0:00:36.6]} 62. Rc5+ {[%clk 0:00:12]}
62... Kb3 {[%clk 0:00:35.9]} 63. Nd2+ {[%clk 0:00:09.8]} 63... Kb2 {[%clk
0:00:32.8]} 64. Nc4+ {[%clk 0:00:07.1]} 64... Kc3 {[%clk 0:00:29.2]} 65. Nxe5+
{[%clk 0:00:06.9]} 65... Kd4 {[%clk 0:00:28.8]} 66. Ra5 {[%clk 0:00:07.1]} 66...
Rc1 {[%clk 0:00:24.4]} 67. Rxa2 {[%clk 0:00:06.5]} 67... Kxe5 {[%clk 0:00:24.9]}
68. f4+ {[%clk 0:00:07.2]} 68... Kf6 {[%clk 0:00:24.9]} 69. Ra6+ {[%clk
0:00:07.9]} 69... Kg7 {[%clk 0:00:24.8]} 70. Kg5 {[%clk 0:00:08.7]} 70... Rc3
{[%clk 0:00:24.2]} 71. g4 {[%clk 0:00:08.7]} 71... Rc5+ {[%clk 0:00:25.1]} 72.
f5 {[%clk 0:00:09.2]} 72... Rc1 {[%clk 0:00:25.5]} 73. Ra7+ {[%clk 0:00:09.6]}
73... Kf8 {[%clk 0:00:25.9]} 74. Kg6 {[%clk 0:00:10.3]} 74... Rg1 {[%clk
0:00:25.6]} 75. g5 {[%clk 0:00:10.7]} 75... Rf1 {[%clk 0:00:25.6]} 76. f6 {[%clk
0:00:11.2]} 76... Ke8 {[%clk 0:00:25.3]} 77. Ra8+ {[%clk 0:00:11.7]} 77... Kd7
{[%clk 0:00:25.5]} 78. f7 {[%clk 0:00:12.4]} 78... Ke7 {[%clk 0:00:25.6]} 79.
Re8+ {[%clk 0:00:13.1]} 79... Kd7 {[%clk 0:00:25.5]} 80. f8=Q {[%clk 0:00:13.9]}
1-0

[Event "Early-Titled-Tuesday-Blitz-October-10-2023"]
[Site "Chess.com"]
[Date "2023.10.10"]
[Round "1"]
[White "AlexandraSamaganova"]
[Black "GradualismUnleashed"]
[Result "1-0"]
[WhiteElo "2228"]
[BlackElo "2561"]
[TimeControl "180+1"]
[EndTime "8:08:37 PDT"]
[Termination "AlexandraSamaganova won by resignation"]

1. c4 {[%clk 0:02:58.1]} 1... Nf6 {[%clk 0:02:59.6]} 2. Nc3 {[%clk 0:02:58]}
2... e6 {[%clk 0:03:00.1]} 3. e4 {[%clk 0:02:58.1]} 3... d5 {[%clk 0:03:00.6]}
4. e5 {[%clk 0:02:58.1]} 4... d4 {[%clk 0:03:00.9]} 5. exf6 {[%clk 0:02:57.9]}
5... dxc3 {[%clk 0:03:01.2]} 6. bxc3 {[%clk 0:02:58.8]} 6... Qxf6 {[%clk
0:03:01.3]} 7. Nf3 {[%clk 0:02:59.7]} 7... Nc6 {[%clk 0:03:00.8]} 8. Bd3 {[%clk
0:02:59.9]} 8... Ne5 {[%clk 0:02:56.9]} 9. Nxe5 {[%clk 0:02:28.5]} 9... Qxe5+
{[%clk 0:02:55.2]} 10. Qe2 {[%clk 0:02:28.9]} 10... Bd6 {[%clk 0:02:52.4]} 11.
Qxe5 {[%clk 0:02:27.7]} 11... Bxe5 {[%clk 0:02:53.3]} 12. O-O {[%clk 0:02:27.3]}
12... O-O {[%clk 0:02:42.1]} 13. Be4 {[%clk 0:02:25]} 13... c6 {[%clk
0:02:37.7]} 14. d4 {[%clk 0:02:23.9]} 14... Bf6 {[%clk 0:02:37.6]} 15. Rb1
{[%clk 0:02:15.1]} 15... e5 {[%clk 0:02:29.2]} 16. Rd1 {[%clk 0:02:07.6]} 16...
Rd8 {[%clk 0:02:25.2]} 17. Be3 {[%clk 0:02:06.3]} 17... exd4 {[%clk 0:01:58.6]}
18. cxd4 {[%clk 0:02:05.7]} 18... g5 {[%clk 0:01:55.6]} 19. h3 {[%clk
0:01:59.8]} 19... Kg7 {[%clk 0:01:55.3]} 20. Rd2 {[%clk 0:01:51.9]} 20... h6
{[%clk 0:01:53]} 21. d5 {[%clk 0:01:25.9]} 21... cxd5 {[%clk 0:01:46]} 22. cxd5
{[%clk 0:01:25.9]} 22... Be5 {[%clk 0:01:42.8]} 23. Bc5 {[%clk 0:01:20.4]} 23...
f5 {[%clk 0:01:39.3]} 24. Bf3 {[%clk 0:01:18.7]} 24... Kf6 {[%clk 0:01:34.8]}
25. g3 {[%clk 0:00:59.3]} 25... b6 {[%clk 0:01:27.8]} 26. Ba3 {[%clk 0:00:38.9]}
26... Bb7 {[%clk 0:01:27]} 27. Kg2 {[%clk 0:00:33.4]} 27... h5 {[%clk
0:01:22.9]} 28. d6 {[%clk 0:00:22.6]} 28... Rab8 {[%clk 0:01:16]} 29. Rc1 {[%clk
0:00:19.3]} 29... g4 {[%clk 0:01:13.1]} 30. hxg4 {[%clk 0:00:18.9]} 30... hxg4
{[%clk 0:01:13.2]} 31. Bxb7 {[%clk 0:00:09.1]} 31... Rxb7 {[%clk 0:01:14.1]} 32.
Rcd1 {[%clk 0:00:05.7]} 32... Ke6 {[%clk 0:01:11.5]} 33. Rd5 {[%clk 0:00:05.5]}
33... Rbd7 {[%clk 0:01:09.3]} 34. f4 {[%clk 0:00:05.4]} 34... Bxd6 {[%clk
0:01:04.2]} 35. R5d3 {[%clk 0:00:04.1]} 35... Bxa3 {[%clk 0:01:02.2]} 36. Re1+
{[%clk 0:00:04.6]} 36... Kf6 {[%clk 0:00:59.4]} 37. Rxa3 {[%clk 0:00:05.5]}
37... Rd3 {[%clk 0:00:58.6]} 38. Rxa7 {[%clk 0:00:04.9]} 38... Rd2+ {[%clk
0:00:56.6]} 39. Kf1 {[%clk 0:00:04.9]} 39... Rh2 {[%clk 0:00:54.4]} 40. Rae7
{[%clk 0:00:03.5]} 40... Rh1+ {[%clk 0:00:47.6]} 41. Kf2 {[%clk 0:00:03.1]}
41... Rd2+ {[%clk 0:00:46.9]} 42. R1e2 {[%clk 0:00:03.4]} 42... Rh2+ {[%clk
0:00:46.2]} 43. Ke1 {[%clk 0:00:02.9]} 43... Rhxe2+ {[%clk 0:00:42.6]} 44. Rxe2
{[%clk 0:00:03.8]} 44... Rd3 {[%clk 0:00:43.2]} 45. Kf2 {[%clk 0:00:03.6]} 45...
Rf3+ {[%clk 0:00:43.3]} 46. Kg2 {[%clk 0:00:03.7]} 46... Ra3 {[%clk 0:00:42.7]}
47. Rb2 {[%clk 0:00:03.9]} 47... b5 {[%clk 0:00:40]} 48. Rxb5 {[%clk 0:00:03]}
48... Rxa2+ {[%clk 0:00:40.4]} 49. Kg1 {[%clk 0:00:03.6]} 49... Rd2 {[%clk
0:00:39.8]} 50. Re5 {[%clk 0:00:02.4]} 50... Rd3 {[%clk 0:00:39.3]} 51. Kg2
{[%clk 0:00:02.1]} 51... Rf3 {[%clk 0:00:39.4]} 52. Re8 {[%clk 0:00:01.7]} 52...
Kf7 {[%clk 0:00:38.7]} 53. Ra8 {[%clk 0:00:01.7]} 53... Ke6 {[%clk 0:00:38.1]}
54. Ra6+ {[%clk 0:00:01.9]} 54... Kd5 {[%clk 0:00:36.7]} 55. Ra5+ {[%clk
0:00:02.1]} 55... Ke6 {[%clk 0:00:35.1]} 56. Ra6+ {[%clk 0:00:02.6]} 56... Kf7
{[%clk 0:00:33.2]} 57. Ra7+ {[%clk 0:00:03.1]} 57... Kg6 {[%clk 0:00:33.2]} 58.
Ra6+ {[%clk 0:00:03.5]} 58... Kg7 {[%clk 0:00:33.4]} 59. Ra7+ {[%clk 0:00:03.7]}
59... Kf6 {[%clk 0:00:33.9]} 60. Ra6+ {[%clk 0:00:04]} 60... Ke7 {[%clk
0:00:34.5]} 61. Ra7+ {[%clk 0:00:04.5]} 61... Kd6 {[%clk 0:00:35.1]} 62. Ra6+
{[%clk 0:00:05]} 62... Kd7 {[%clk 0:00:33.8]} 63. Ra7+ {[%clk 0:00:05.3]} 63...
Kc6 {[%clk 0:00:34.3]} 64. Ra6+ {[%clk 0:00:05.7]} 64... Kb5 {[%clk 0:00:34.6]}
65. Rf6 {[%clk 0:00:05.8]} 65... Rd3 {[%clk 0:00:34.7]} 66. Rxf5+ {[%clk
0:00:06.3]} 66... Kc4 {[%clk 0:00:35.6]} 67. Rg5 {[%clk 0:00:06.2]} 67... Rd2+
{[%clk 0:00:34.7]} 68. Kf1 {[%clk 0:00:06.6]} 68... Kd4 {[%clk 0:00:35.2]} 69.
Rxg4 {[%clk 0:00:06.6]} 69... Ke3 {[%clk 0:00:35.7]} 70. Rg8 {[%clk 0:00:04.7]}
70... Kf3 {[%clk 0:00:36]} 71. Ke1 {[%clk 0:00:05]} 71... Re2+ {[%clk
0:00:35.9]} 72. Kd1 {[%clk 0:00:05.4]} 72... Rg2 {[%clk 0:00:35]} 73. f5 {[%clk
0:00:05.4]} 73... Ke4 {[%clk 0:00:34.7]} 74. f6 {[%clk 0:00:05.8]} 74... Kd3
{[%clk 0:00:32.9]} 75. Kc1 {[%clk 0:00:05.2]} 75... Kc3 {[%clk 0:00:32.7]} 76.
Kd1 {[%clk 0:00:04.6]} 76... Kd3 {[%clk 0:00:33.1]} 77. Rd8+ {[%clk 0:00:04.8]}
77... Ke3 {[%clk 0:00:33.1]} 78. f7 {[%clk 0:00:05.2]} 78... Rg1+ {[%clk
0:00:32.6]} 79. Kc2 {[%clk 0:00:05]} 79... Rxg3 {[%clk 0:00:33.2]} 80. f8=Q
{[%clk 0:00:05.1]} 80... Rf3 {[%clk 0:00:33.4]} 81. Qe7+ {[%clk 0:00:05]} 81...
Kf2 {[%clk 0:00:33.6]} 82. Rf8 {[%clk 0:00:05.3]} 1-0

[Event "Early-Titled-Tuesday-Blitz-October-10-2023"]
[Site "Chess.com"]
[Date "2023.10.10"]
[Round "1"]
[White "NovoselovRoman"]
[Black "Khuslen2008"]
[Result "1-0"]
[WhiteElo "2626"]
[BlackElo "2318"]
[TimeControl "180+1"]
[EndTime "8:08:44 PDT"]
[Termination "NovoselovRoman won by resignation"]

1. e4 {[%clk 0:02:58.7]} 1... c5 {[%clk 0:02:59.7]} 2. Nc3 {[%clk 0:02:57.2]}
2... e6 {[%clk 0:02:58.9]} 3. Nf3 {[%clk 0:02:54.3]} 3... Nc6 {[%clk 0:02:58.5]}
4. h3 {[%clk 0:02:52.3]} 4... a6 {[%clk 0:02:52.8]} 5. a4 {[%clk 0:02:50]} 5...
d6 {[%clk 0:02:52.5]} 6. d4 {[%clk 0:02:48.2]} 6... cxd4 {[%clk 0:02:52]} 7.
Nxd4 {[%clk 0:02:49.1]} 7... Nf6 {[%clk 0:02:51.8]} 8. Be3 {[%clk 0:02:43.1]}
8... Be7 {[%clk 0:02:51.3]} 9. Be2 {[%clk 0:02:31.2]} 9... O-O {[%clk
0:02:50.3]} 10. O-O {[%clk 0:02:30.8]} 10... Bd7 {[%clk 0:02:47.8]} 11. Qd2
{[%clk 0:02:29.5]} 11... Rc8 {[%clk 0:02:44.3]} 12. Rad1 {[%clk 0:02:28.4]}
12... Qc7 {[%clk 0:02:32.5]} 13. Nxc6 {[%clk 0:02:18.4]} 13... Bxc6 {[%clk
0:02:32.3]} 14. Bf3 {[%clk 0:02:16.1]} 14... b5 {[%clk 0:02:23]} 15. axb5 {[%clk
0:02:06.9]} 15... axb5 {[%clk 0:02:22.9]} 16. Qd4 {[%clk 0:02:03.3]} 16... e5
{[%clk 0:02:00.2]} 17. Qd3 {[%clk 0:02:01.2]} 17... b4 {[%clk 0:01:58.2]} 18.
Ne2 {[%clk 0:01:53]} 18... Qb7 {[%clk 0:01:51.6]} 19. Ng3 {[%clk 0:01:45.7]}
19... Bb5 {[%clk 0:01:50.5]} 20. Qd2 {[%clk 0:01:45.1]} 20... Bxf1 {[%clk
0:01:50.4]} 21. Rxf1 {[%clk 0:01:45.4]} 21... Rfd8 {[%clk 0:01:48.8]} 22. Bg5
{[%clk 0:01:40.4]} 22... h6 {[%clk 0:01:37.7]} 23. Bh4 {[%clk 0:01:21.9]} 23...
b3 {[%clk 0:01:32]} 24. cxb3 {[%clk 0:01:17.7]} 24... Nh7 {[%clk 0:01:19.4]} 25.
Bxe7 {[%clk 0:01:12.8]} 25... Qxe7 {[%clk 0:01:19.7]} 26. Nf5 {[%clk 0:01:07.1]}
26... Qe6 {[%clk 0:01:20.1]} 27. b4 {[%clk 0:01:05.2]} 27... d5 {[%clk
0:01:19.3]} 28. Bg4 {[%clk 0:00:51.1]} 28... dxe4 {[%clk 0:01:08.7]} 29. Qe3
{[%clk 0:00:50.8]} 29... Qe8 {[%clk 0:00:56.9]} 30. Qg3 {[%clk 0:00:40.9]} 30...
Ng5 {[%clk 0:00:52.2]} 31. h4 {[%clk 0:00:39.1]} 31... Ne6 {[%clk 0:00:47.2]}
32. Nxh6+ {[%clk 0:00:38.3]} 32... Kf8 {[%clk 0:00:41.3]} 33. Nf5 {[%clk
0:00:32.5]} 33... Rb8 {[%clk 0:00:40.5]} 34. Qxe5 {[%clk 0:00:30.5]} 34... Rb5
{[%clk 0:00:37.4]} 35. Qc3 {[%clk 0:00:25]} 35... Rc8 {[%clk 0:00:35]} 36. Qg3
{[%clk 0:00:20.2]} 36... Rd8 {[%clk 0:00:34.1]} 37. Nd6 {[%clk 0:00:16]} 37...
Qc6 {[%clk 0:00:31.2]} 38. Nxb5 {[%clk 0:00:13.4]} 38... Qxb5 {[%clk 0:00:31.2]}
39. Bxe6 {[%clk 0:00:11.9]} 39... fxe6 {[%clk 0:00:31.1]} 40. Re1 {[%clk
0:00:12.4]} 40... Qxb4 {[%clk 0:00:30.2]} 41. Qf4+ {[%clk 0:00:12.4]} 41... Kg8
{[%clk 0:00:30.3]} 42. Rxe4 {[%clk 0:00:13.3]} 42... Qb3 {[%clk 0:00:19.3]} 43.
Kh2 {[%clk 0:00:09.7]} 43... Qb8 {[%clk 0:00:18.6]} 44. Qxb8 {[%clk 0:00:08.9]}
44... Rxb8 {[%clk 0:00:18.9]} 45. Rxe6 {[%clk 0:00:09.8]} 45... Rxb2 {[%clk
0:00:19.6]} 46. Kg3 {[%clk 0:00:09.8]} 46... Kf7 {[%clk 0:00:19.7]} 47. Re3
{[%clk 0:00:10.2]} 47... Rb5 {[%clk 0:00:19.3]} 48. Ra3 {[%clk 0:00:10.7]} 48...
Rb4 {[%clk 0:00:19.3]} 49. f4 {[%clk 0:00:10.6]} 49... Kg6 {[%clk 0:00:17.5]}
50. Kg4 {[%clk 0:00:10.6]} 50... Rb2 {[%clk 0:00:16.8]} 51. g3 {[%clk 0:00:11]}
51... Rb5 {[%clk 0:00:17.4]} 52. Ra6+ {[%clk 0:00:11.2]} 52... Kh7 {[%clk
0:00:17.7]} 53. h5 {[%clk 0:00:11.6]} 53... Rc5 {[%clk 0:00:17]} 54. Kh4 {[%clk
0:00:12]} 54... Rc4 {[%clk 0:00:16.3]} 55. Ra7 {[%clk 0:00:12]} 55... Kh6 {[%clk
0:00:15.6]} 56. Ra6+ {[%clk 0:00:09.3]} 56... Kh7 {[%clk 0:00:15.6]} 57. Kg5
{[%clk 0:00:09.5]} 57... Rc5+ {[%clk 0:00:13.5]} 58. f5 {[%clk 0:00:08.6]} 58...
Rc7 {[%clk 0:00:13.3]} 59. g4 {[%clk 0:00:08.3]} 59... Rb7 {[%clk 0:00:13.3]}
60. h6 {[%clk 0:00:08.6]} 60... gxh6+ {[%clk 0:00:11.1]} 61. Rxh6+ {[%clk
0:00:09.5]} 61... Kg7 {[%clk 0:00:11.8]} 62. f6+ {[%clk 0:00:09.8]} 62... Kg8
{[%clk 0:00:11.5]} 63. Kg6 {[%clk 0:00:10.2]} 63... Rb5 {[%clk 0:00:10.9]} 64.
f7+ {[%clk 0:00:08.7]} 1-0

[Event "Early-Titled-Tuesday-Blitz-October-10-2023"]
[Site "Chess.com"]
[Date "2023.10.10"]
[Round "1"]
[White "VincentKeymer"]
[Black "vladgoncharov"]
[Result "1/2-1/2"]
[WhiteElo "3102"]
[BlackElo "2530"]
[TimeControl "180+1"]
[EndTime "8:08:46 PDT"]
[Termination "Game drawn - insufficient material"]

1. a3 {[%clk 0:03:00.9]} 1... Nf6 {[%clk 0:02:58.1]} 2. Nf3 {[%clk 0:03:01]}
2... c5 {[%clk 0:02:48.8]} 3. b4 {[%clk 0:03:00.7]} 3... b6 {[%clk 0:02:44.6]}
4. g3 {[%clk 0:02:56.8]} 4... Bb7 {[%clk 0:02:44.2]} 5. Bg2 {[%clk 0:02:57.4]}
5... e6 {[%clk 0:02:44.4]} 6. O-O {[%clk 0:02:56.1]} 6... Be7 {[%clk 0:02:44.2]}
7. c4 {[%clk 0:02:56.7]} 7... O-O {[%clk 0:02:41.7]} 8. Nc3 {[%clk 0:02:57.2]}
8... Qc8 {[%clk 0:02:37.5]} 9. bxc5 {[%clk 0:02:51.7]} 9... Qxc5 {[%clk
0:02:33]} 10. d3 {[%clk 0:02:49.9]} 10... d5 {[%clk 0:02:27.2]} 11. Ne5 {[%clk
0:02:15.2]} 11... Qc8 {[%clk 0:02:19.6]} 12. Bf4 {[%clk 0:02:03.8]} 12... dxc4
{[%clk 0:02:16.9]} 13. Bxb7 {[%clk 0:02:00.9]} 13... Qxb7 {[%clk 0:02:16.1]} 14.
Nxc4 {[%clk 0:02:01.8]} 14... Rd8 {[%clk 0:02:11.3]} 15. Rc1 {[%clk 0:02:00.3]}
15... Na6 {[%clk 0:02:02]} 16. Nb5 {[%clk 0:01:50.2]} 16... Nd5 {[%clk 0:01:51]}
17. Be5 {[%clk 0:01:46.2]} 17... Qd7 {[%clk 0:01:30.2]} 18. a4 {[%clk
0:01:38.6]} 18... Nc5 {[%clk 0:01:26.8]} 19. d4 {[%clk 0:01:34.9]} 19... Nxa4
{[%clk 0:01:04.5]} 20. Qxa4 {[%clk 0:01:15.7]} 20... a6 {[%clk 0:01:04.4]} 21.
Nc3 {[%clk 0:00:51.7]} 21... b5 {[%clk 0:01:00.1]} 22. Qb3 {[%clk 0:00:45.4]}
22... bxc4 {[%clk 0:00:58.4]} 23. Qxc4 {[%clk 0:00:46.3]} 23... Rac8 {[%clk
0:00:52.8]} 24. Qd3 {[%clk 0:00:46.5]} 24... Nxc3 {[%clk 0:00:46.9]} 25. Rxc3
{[%clk 0:00:44.1]} 25... a5 {[%clk 0:00:45.5]} 26. Rfc1 {[%clk 0:00:40.3]} 26...
Rxc3 {[%clk 0:00:42.4]} 27. Rxc3 {[%clk 0:00:38.8]} 27... Rc8 {[%clk 0:00:42.3]}
28. Rxc8+ {[%clk 0:00:22.5]} 28... Qxc8 {[%clk 0:00:41.9]} 29. Qb5 {[%clk
0:00:23.4]} 29... Bb4 {[%clk 0:00:41.5]} 30. Bf4 {[%clk 0:00:20.3]} 30... h6
{[%clk 0:00:40.6]} 31. h4 {[%clk 0:00:20.2]} 31... Qa8 {[%clk 0:00:37.4]} 32. f3
{[%clk 0:00:18.8]} 32... Be7 {[%clk 0:00:34.1]} 33. Qa4 {[%clk 0:00:18.4]} 33...
Bb4 {[%clk 0:00:25.8]} 34. Kf2 {[%clk 0:00:18.5]} 34... h5 {[%clk 0:00:23.9]}
35. Qb5 {[%clk 0:00:17.9]} 35... g6 {[%clk 0:00:22.9]} 36. Be5 {[%clk
0:00:16.9]} 36... Bf8 {[%clk 0:00:21.7]} 37. Qa4 {[%clk 0:00:16.9]} 37... Bb4
{[%clk 0:00:20.6]} 38. Bf4 {[%clk 0:00:16.7]} 38... Be7 {[%clk 0:00:19.7]} 39.
Bd2 {[%clk 0:00:16.7]} 39... Qd5 {[%clk 0:00:17.7]} 40. Bxa5 {[%clk 0:00:15.9]}
40... Kg7 {[%clk 0:00:17.7]} 41. Bc3 {[%clk 0:00:15.9]} 41... Bf6 {[%clk
0:00:17.9]} 42. Qb4 {[%clk 0:00:14.4]} 42... Qd7 {[%clk 0:00:17.2]} 43. Qc5
{[%clk 0:00:14.4]} 43... Qd5 {[%clk 0:00:16.1]} 44. Qxd5 {[%clk 0:00:12.4]}
44... exd5 {[%clk 0:00:16.4]} 45. e4 {[%clk 0:00:11.1]} 45... dxe4 {[%clk
0:00:16.7]} 46. fxe4 {[%clk 0:00:12]} 46... g5 {[%clk 0:00:16.8]} 47. hxg5
{[%clk 0:00:11.4]} 47... Bxg5 {[%clk 0:00:16.5]} 48. d5+ {[%clk 0:00:11.9]}
48... Kf8 {[%clk 0:00:16.6]} 49. e5 {[%clk 0:00:10.9]} 49... Ke7 {[%clk
0:00:16.5]} 50. Kf3 {[%clk 0:00:10.9]} 50... Kd7 {[%clk 0:00:15.6]} 51. Be1
{[%clk 0:00:10.5]} 51... Ke7 {[%clk 0:00:15]} 52. Ke4 {[%clk 0:00:11]} 52... Bc1
{[%clk 0:00:14.2]} 53. Kf5 {[%clk 0:00:11.4]} 53... Bb2 {[%clk 0:00:13.8]} 54.
Bb4+ {[%clk 0:00:11.5]} 54... Ke8 {[%clk 0:00:13.7]} 55. Bd6 {[%clk 0:00:10.6]}
55... Bc1 {[%clk 0:00:13.7]} 56. Kf6 {[%clk 0:00:10.7]} 56... Bd2 {[%clk
0:00:13.9]} 57. e6 {[%clk 0:00:08.2]} 57... fxe6 {[%clk 0:00:13.6]} 58. dxe6
{[%clk 0:00:09.1]} 58... Be3 {[%clk 0:00:12.5]} 59. Kg6 {[%clk 0:00:09.4]} 59...
Bf2 {[%clk 0:00:12.5]} 60. Kf5 {[%clk 0:00:08.6]} 60... Be1 {[%clk 0:00:11.9]}
61. Kg5 {[%clk 0:00:08.5]} 61... Bf2 {[%clk 0:00:12]} 62. Kg6 {[%clk 0:00:05.7]}
62... Be1 {[%clk 0:00:12.1]} 63. Kf5 {[%clk 0:00:05.5]} 63... Bf2 {[%clk
0:00:11.9]} 64. Kg5 {[%clk 0:00:05.5]} 64... Be1 {[%clk 0:00:12.1]} 65. Kh4
{[%clk 0:00:06.1]} 65... Bf2 {[%clk 0:00:12.1]} 66. Bb4 {[%clk 0:00:06.6]} 66...
Kd8 {[%clk 0:00:10.2]} 67. Ba3 {[%clk 0:00:06.8]} 67... Ke8 {[%clk 0:00:09.9]}
68. Bd6 {[%clk 0:00:07.5]} 68... Kd8 {[%clk 0:00:08.7]} 69. Kh3 {[%clk 0:00:08]}
69... Ke8 {[%clk 0:00:08.4]} 70. Kg2 {[%clk 0:00:08.6]} 70... Be1 {[%clk
0:00:08.3]} 71. Bc5 {[%clk 0:00:08.9]} 71... Kd8 {[%clk 0:00:07.3]} 72. Kf3
{[%clk 0:00:09.5]} 72... Ke8 {[%clk 0:00:07.6]} 73. Bd6 {[%clk 0:00:09.8]} 73...
Kd8 {[%clk 0:00:07.5]} 74. Ke2 {[%clk 0:00:10.3]} 74... Bxg3 {[%clk 0:00:06.8]}
75. Bxg3 {[%clk 0:00:08.9]} 75... Ke7 {[%clk 0:00:07]} 76. Kf3 {[%clk
0:00:08.8]} 76... Kxe6 {[%clk 0:00:07.3]} 77. Kf4 {[%clk 0:00:09.7]} 77... Kd5
{[%clk 0:00:07.8]} 78. Kg5 {[%clk 0:00:10]} 78... Kc4 {[%clk 0:00:08.5]} 79. Kh4
{[%clk 0:00:10.9]} 79... Kb3 {[%clk 0:00:09]} 80. Kxh5 {[%clk 0:00:11.8]}
1/2-1/2